bitfinex-derivatives/quotes_BTCF0:USTF0_20260111
["timestamp","ask_amount","ask_price","bid_price","bid_amount"]
[1768141662864,0.01252789,91012.0,91000.0,0.011003]
[1768141664866,0.01252789,91012.0,90997.0,0.05956959]
[1768141665067,0.01252789,91012.0,90994.0,0.12187901]
[1768141665365,0.01252789,91012.0,90999.0,0.011003]
[1768141666867,0.01252789,91012.0,91003.0,0.011002]
[1768141668766,0.09601643,91014.0,91003.0,0.011002]
[1768141671864,0.11013841,91014.0,91003.0,0.011002]
[1768141672974,0.11013841,91014.0,91001.0,0.011003]
[1768141673571,0.11013841,91014.0,91002.0,0.011002]
[1768141673773,0.11013841,91014.0,91003.0,0.011002]
[1768141675773,0.11013841,91014.0,91004.0,0.011002]
[1768141676275,0.09601643,91014.0,91004.0,0.011002]
[1768141678271,0.0136751,91013.0,91004.0,0.011002]
[1768141678977,0.09601643,91014.0,91004.0,0.011002]
[1768141680976,0.09601643,91014.0,91005.0,0.011002]
[1768141683180,0.09601643,91014.0,91003.0,0.011002]
[1768141686077,0.09601643,91014.0,91004.0,0.011002]
[1768141686678,0.10888163,91014.0,91004.0,0.011002]
[1768141692581,0.10888163,91014.0,90995.0,0.09355775]
[1768141692782,0.10888163,91014.0,91004.0,0.011002]
[1768141693181,0.10888163,91014.0,91005.0,0.011002]
[1768141699284,0.10888163,91014.0,91003.0,0.011002]
[1768141701384,0.10888163,91014.0,90995.0,0.09355775]
[1768141701590,0.10888163,91014.0,91006.0,0.011002]
[1768141704687,0.10888163,91014.0,90995.0,0.09355775]
[1768141705780,0.09348,91017.0,90996.0,0.09856642]
[1768141706091,0.10638509,91017.0,90996.0,0.19212417]
[1768141706389,0.01290509,91016.0,90996.0,0.19212417]
[1768141708394,0.01290509,91016.0,91005.0,0.011002]
[1768141710496,0.01290509,91016.0,91003.0,0.011002]
[1768141711102,0.01290509,91016.0,91004.0,0.011002]
[1768141714502,0.01290509,91016.0,90997.0,0.10407412]
[1768141714800,0.01290509,91016.0,91004.0,0.011002]
[1768141717214,0.01290509,91016.0,91005.0,0.011002]
[1768141719115,0.09348,91017.0,91005.0,0.011002]
[1768141719306,0.09348,91017.0,90998.0,0.10407412]
[1768141721513,0.09348,91017.0,90998.0,0.20076968]
[1768141721716,0.09348,91017.0,91005.0,0.011002]
[1768141723115,0.09348,91017.0,90999.0,0.09307112]
[1768141723916,0.09348,91017.0,91006.0,0.011002]
[1768141724319,0.09348,91017.0,91008.0,0.011002]
[1768141725414,0.09348,91017.0,91009.0,0.011002]
[1768141727921,0.09348,91017.0,90999.0,0.09307112]
[1768141728416,0.0122149,91022.0,91002.0,0.18976668]
[1768141728619,0.09348,91021.0,91003.0,0.09307112]
[1768141729522,0.1166949,91021.0,91003.0,0.09307112]
[1768141730623,0.1166949,91021.0,91007.0,0.011002]
[1768141731526,0.011,91020.0,91007.0,0.011002]
[1768141732522,0.011,91020.0,91008.0,0.011002]
[1768141733926,0.1056949,91021.0,91003.0,0.09307112]
[1768141734122,0.011001,91018.0,91007.0,0.011002]
[1768141734423,0.011,91020.0,91007.0,0.011002]
[1768141734621,0.09348,91019.0,91007.0,0.011002]
[1768141736621,0.011,91020.0,91007.0,0.011002]
[1768141736830,0.09348,91019.0,91007.0,0.011002]
[1768141737719,0.011,91020.0,91003.0,0.09307112]
[1768141737720,0.011001,91018.0,91005.0,0.011002]
[1768141740130,0.011001,91018.0,91006.0,0.011002]
[1768141740335,0.011001,91018.0,91007.0,0.011002]
[1768141742135,0.011001,91018.0,91005.0,0.011002]
[1768141743335,0.011001,91018.0,91006.0,0.011002]
[1768141746339,0.09348,91019.0,91007.0,0.011002]
[1768141747040,0.104481,91019.0,91007.0,0.011002]
[1768141749041,0.104481,91019.0,91005.0,0.011002]
[1768141749842,0.104481,91019.0,91006.0,0.011002]
[1768141751945,0.104481,91019.0,91007.0,0.011002]
[1768141756148,0.1151432,91019.0,91007.0,0.011002]
[1768141756750,0.1151432,91019.0,91005.0,0.011002]
[1768141757049,0.1151432,91019.0,91006.0,0.011002]
[1768141758165,0.011001,91018.0,91006.0,0.011002]
[1768141759356,0.1041422,91019.0,91002.0,0.09669556]
[1768141759563,0.09348,91019.0,91009.0,0.011002]
[1768141760263,0.09348,91019.0,91007.0,0.011002]
[1768141760762,0.011001,91018.0,91007.0,0.011002]
[1768141760955,0.011,91020.0,91007.0,0.011002]
[1768141761150,0.011001,91019.0,91007.0,0.011002]
[1768141762660,0.10925502,91021.0,91007.0,0.011002]
[1768141765763,0.11990059,91021.0,91007.0,0.011002]
[1768141766966,0.21338059,91021.0,91007.0,0.011002]
[1768141768067,0.21338059,91021.0,91008.0,0.011002]
[1768141769061,0.20238059,91021.0,91008.0,0.011002]
[1768141769261,0.10890059,91021.0,91009.0,0.011002]
[1768141770063,0.10890059,91021.0,91003.0,0.011002]
[1768141770563,0.10890059,91021.0,91014.0,0.011001]
[1768141771564,0.10890059,91021.0,91016.0,0.011001]
[1768141771973,0.10890059,91021.0,91014.0,0.011001]
[1768141773972,0.10890059,91021.0,91012.0,0.011001]
[1768141775068,0.10890059,91021.0,91009.0,0.011002]
[1768141775373,0.10890059,91021.0,91003.0,0.09321957]
[1768141775374,0.10890059,91021.0,91004.0,0.011002]
[1768141776458,0.10890059,91021.0,91011.0,0.011001]
[1768141780066,0.10890059,91021.0,91012.0,0.011001]
[1768141785478,0.10890059,91021.0,91013.0,0.011001]
[1768141788180,0.10890059,91021.0,91004.0,0.011002]
[1768141789383,0.10890059,91021.0,91012.0,0.011001]
[1768141792990,0.10890059,91021.0,91013.0,0.011001]
[1768141793295,0.10890059,91021.0,91014.0,0.011001]
[1768141793479,0.10890059,91021.0,91006.0,0.011002]
[1768141793791,0.10890059,91021.0,91014.0,0.011001]
[1768141794089,0.09348,91023.0,91006.0,0.011002]
[1768141794293,0.10201317,91023.0,91006.0,0.011002]
[1768141794587,0.00853317,91022.0,91006.0,0.011002]
[1768141794994,0.00853317,91022.0,91014.0,0.011001]
[1768141795190,0.00853317,91022.0,91013.0,0.011001]
[1768141795687,0.00853317,91022.0,91015.0,0.011001]
[1768141796191,0.09086139,91023.0,91015.0,0.011001]
[1768141797091,0.01427974,91025.0,91015.0,0.011001]
[1768141797292,0.01427974,91025.0,91017.0,0.011001]
[1768141797692,0.01427974,91025.0,91014.0,0.011001]
[1768141797883,0.01427974,91025.0,91006.0,0.09878564]
[1768141798087,0.00549303,91025.0,91007.0,0.09513519]
[1768141798282,0.00549303,91025.0,91012.0,0.011001]
[1768141798498,0.011,91024.0,91007.0,0.10613719]
[1768141798684,0.011,91024.0,91007.0,0.09513519]
[1768141799085,0.00549303,91025.0,91007.0,0.19392083]
[1768141799299,0.00549303,91025.0,91010.0,0.011001]
[1768141799682,0.00549303,91025.0,91011.0,0.09513519]
[1768141799997,0.00549303,91025.0,91014.0,0.011001]
[1768141800498,0.00549303,91025.0,91015.0,0.011001]
[1768141800791,0.00549303,91025.0,91011.0,0.09878564]
[1768141801094,0.00549303,91025.0,91012.0,0.19392083]
[1768141801889,0.00549303,91025.0,91015.0,0.011001]
[1768141802092,0.00549303,91025.0,91015.0,0.104481]
[1768141803295,0.00543803,91025.0,91015.0,0.104481]
[1768141804396,0.00543803,91025.0,91015.0,0.09348]
[1768141809101,0.00543803,91025.0,91016.0,0.011001]
[1768141810894,0.00543803,91025.0,91015.0,0.18995828]
[1768141815200,0.01643803,91025.0,91015.0,0.18995828]
[1768141815901,0.00543803,91025.0,91015.0,0.18995828]
[1768141817402,0.00543803,91025.0,91016.0,0.09647828]
[1768141817804,0.00543803,91025.0,91016.0,0.10747928]
[1768141818402,0.010999,91029.0,91017.0,0.19440319]
[1768141818605,0.010999,91029.0,91019.0,0.09647828]
[1768141819505,0.010999,91029.0,91018.0,0.09792491]
[1768141819903,0.010999,91029.0,91018.0,0.19440319]
[1768141820107,0.11888141,91035.0,91017.0,0.011001]
[1768141820305,0.11888141,91035.0,91017.0,0.10747928]
[1768141821211,0.09755924,91035.0,91017.0,0.10747928]
[1768141821411,0.010999,91029.0,91018.0,0.09647828]
[1768141821597,0.010999,91029.0,91018.0,0.10747928]
[1768141823500,0.09348,91036.0,91022.0,0.09647828]
[1768141823501,0.010999,91033.0,91022.0,0.09647828]
[1768141823911,0.010999,91035.0,91022.0,0.09647828]
[1768141824403,0.010999,91035.0,91021.0,0.10892491]
[1768141825012,0.010999,91035.0,91022.0,0.011]
[1768141825513,0.010999,91035.0,91023.0,0.011]
[1768141828215,0.09348,91036.0,91023.0,0.011]
[1768141828714,0.010999,91035.0,91021.0,0.09792491]
[1768141829808,0.010999,91035.0,91022.0,0.09647828]
[1768141830415,0.010999,91035.0,91022.0,0.10747828]
[1768141831718,0.010999,91035.0,91024.0,0.011]
[1768141832311,0.010999,91034.0,91022.0,0.09647828]
[1768141832505,0.09348,91036.0,91022.0,0.10747828]
[1768141832710,0.09348,91036.0,91024.0,0.011]
[1768141833421,0.09348,91036.0,91026.0,0.09647828]
[1768141833625,0.09348,91036.0,91027.0,0.09647828]
[1768141833819,0.09348,91036.0,91028.0,0.010999]
[1768141834520,0.09348,91036.0,91026.0,0.09792491]
[1768141835425,0.09348,91036.0,91026.0,0.10892491]
[1768141836722,0.09348,91036.0,91027.0,0.010999]
[1768141837519,0.00241659,91038.0,91027.0,0.010999]
[1768141840318,0.00241659,91038.0,91029.0,0.010999]
[1768141842119,0.00241659,91038.0,91027.0,0.09778814]
[1768141843319,0.00241659,91038.0,91026.0,0.09792491]
[1768141843726,0.00241659,91038.0,91026.0,0.19571305]
[1768141846926,0.00241659,91038.0,91027.0,0.09778814]
[1768141850835,0.00241659,91038.0,91028.0,0.09778814]
[1768141851632,0.00241659,91038.0,91028.0,0.10878714]
[1768141851817,0.00241659,91038.0,91028.0,0.20696046]
[1768141852025,0.00241659,91038.0,91029.0,0.09778814]
[1768141852733,0.00241659,91038.0,91029.0,0.19596146]
[1768141853333,0.09348,91041.0,91031.0,0.09778814]
[1768141853536,0.09348,91041.0,91033.0,0.09778814]
[1768141863227,0.010998,91042.0,91034.0,0.09778814]
[1768141863435,0.09348,91044.0,91034.0,0.09778814]
[1768141863638,0.09348,91044.0,91033.0,0.09817332]
[1768141863831,0.09348,91044.0,91030.0,0.010999]
[1768141864141,0.09348,91044.0,91030.0,0.10186899]
[1768141864336,0.09348,91044.0,91031.0,0.09086999]
[1768141864541,0.010998,91042.0,91031.0,0.18877561]
[1768141864841,0.09348,91044.0,91031.0,0.18877561]
[1768141865041,0.010998,91042.0,91033.0,0.09086999]
[1768141865642,0.00549182,91045.0,91035.0,0.09086999]
[1768141865832,0.00549182,91045.0,91035.0,0.18877561]
[1768141866539,0.010998,91044.0,91035.0,0.18877561]
[1768141868328,0.00549182,91045.0,91036.0,0.09839488]
[1768141869039,0.010992,91088.0,91038.0,0.18909283]
[1768141869230,0.010994,91070.0,91049.0,0.18909283]
[1768141869434,0.010995,91064.0,91052.0,0.18909283]
[1768141869639,0.09348,91073.0,91055.0,0.18909283]
[1768141869841,0.09348,91073.0,91056.0,0.18909283]
[1768141870039,0.09348,91073.0,91058.0,0.18909283]
[1768141870234,0.010995,91063.0,91061.0,0.09069795]
[1768141870440,0.010994,91070.0,91048.0,0.09839488]
[1768141870640,0.010996,91056.0,91048.0,0.09839488]
[1768141870838,0.010996,91054.0,91048.0,0.09839488]
[1768141871038,0.010996,91054.0,91049.0,0.09348]
[1768141871337,0.010996,91054.0,91050.0,0.09839488]
[1768141871648,0.010996,91057.0,91050.0,0.09839488]
[1768141872345,0.010996,91057.0,91052.0,0.09839488]
[1768141872848,0.010996,91057.0,91053.0,0.09069795]
[1768141873040,0.010996,91057.0,91055.0,0.09069795]
[1768141874358,0.010996,91057.0,91055.0,9.5e-07]
[1768141875048,0.010996,91058.0,91055.0,9.5e-07]
[1768141875248,0.010996,91058.0,91054.0,0.09839488]
[1768141877640,0.010996,91058.0,91050.0,0.09839488]
[1768141881057,0.010996,91060.0,91050.0,0.09839488]
[1768141881252,0.010995,91066.0,91050.0,0.09839488]
[1768141881447,0.010996,91057.0,91050.0,0.09839488]
[1768141881655,0.010996,91057.0,91049.0,0.09348]
[1768141882043,0.010995,91066.0,91049.0,0.09348]
[1768141882253,0.010996,91058.0,91049.0,0.09348]
[1768141882752,0.010995,91066.0,91050.0,0.09839488]
[1768141882952,0.010995,91062.0,91050.0,0.09839488]
[1768141883253,0.00241579,91068.0,91052.0,0.09839488]
[1768141883448,0.010995,91062.0,91052.0,0.09839488]
[1768141883943,0.010995,91062.0,91052.0,0.04839488]
[1768141884143,0.18664441,91073.0,91049.0,0.09348]
[1768141884144,0.00248941,91085.0,91053.0,0.10982252]
[1768141884347,0.010992,91094.0,91066.0,0.10169295]
[1768141884643,0.010993,91085.0,91069.0,0.09069795]
[1768141884949,0.010993,91085.0,91070.0,0.09344]
[1768141885252,0.00241499,91098.0,91071.0,0.09069795]
[1768141885253,0.09801271,91097.0,91071.0,0.09069795]
[1768141885454,0.010992,91089.0,91073.0,0.09069795]
[1768141885650,0.19117712,91097.0,91073.0,0.09069795]
[1768141885856,0.010993,91079.0,91074.0,0.05847097]
[1768141886154,0.00241499,91098.0,91075.0,0.09344]
[1768141886350,0.010993,91084.0,91076.0,0.09344]
[1768141886656,0.09801271,91098.0,91077.0,0.09344]
[1768141886657,0.09801271,91096.0,91077.0,0.09344]
[1768141886853,0.010993,91085.0,91077.0,0.09344]
[1768141887045,0.09801271,91096.0,91077.0,0.09344]
[1768141887046,0.010992,91088.0,91077.0,0.09344]
[1768141887447,0.010937,91088.0,91077.0,0.09344]
[1768141891555,0.09801271,91096.0,91077.0,0.09344]
[1768141891859,0.010994,91076.0,91069.0,0.32104]
[1768141892058,0.010994,91076.0,91070.0,0.09344]
[1768141892253,0.010994,91076.0,91069.0,0.00051867]
[1768141892448,0.010994,91076.0,91070.0,0.09395867]
[1768141892959,0.010994,91076.0,91071.0,0.09344]
[1768141893851,0.010994,91076.0,91059.0,0.010996]
[1768141894056,0.010994,91076.0,91060.0,0.19536]
[1768141896182,0.010994,91076.0,91061.0,7.95e-05]
[1768141899076,0.010993,91080.0,91062.0,0.01291852]
[1768141899282,0.010993,91080.0,91063.0,0.00192352]
[1768141899882,0.010993,91080.0,91064.0,0.09344]
[1768141900982,0.10900571,91084.0,91064.0,0.09344]
[1768141901383,0.10900571,91084.0,91064.0,0.10641581]
[1768141901574,0.010993,91082.0,91064.0,0.10641581]
[1768141902485,0.010993,91082.0,91066.0,0.010995]
[1768141904387,0.010993,91082.0,91064.0,0.09542081]
[1768141905092,0.010993,91080.0,91064.0,0.09542081]
[1768141905794,0.010993,91080.0,91049.0,0.00152767]
[1768141905795,0.010994,91072.0,91049.0,0.00152767]
[1768141906092,0.09430486,91078.0,91060.0,0.010996]
[1768141906093,0.010994,91075.0,91060.0,0.010996]
[1768141906288,0.010994,91075.0,91061.0,0.09354359]
[1768141906587,0.010994,91075.0,91062.0,0.00010359]
[1768141907195,0.010995,91062.0,91051.0,0.09344]
[1768141907388,0.010994,91077.0,91051.0,0.09344]
[1768141907389,0.09430486,91063.0,91051.0,0.09344]
[1768141907582,0.09430486,91061.0,91050.0,0.09344]
[1768141907889,0.09430486,91061.0,91050.0,0.01376846]
[1768141908089,0.10530086,91060.0,91044.0,0.01111907]
[1768141908291,0.19276611,91060.0,91045.0,0.09344]
[1768141908596,0.010995,91067.0,91045.0,0.09344]
[1768141908597,0.09430486,91058.0,91045.0,0.09344]
[1768141909490,0.010996,91056.0,91045.0,0.09344]
[1768141909691,0.00858021,91056.0,91045.0,0.09344]
[1768141909999,0.09430486,91058.0,91044.0,0.01142696]
[1768141910189,0.010995,91067.0,91042.0,0.09344]
[1768141910190,0.10530186,91052.0,91042.0,0.09344]
[1768141911282,0.09981125,91052.0,91042.0,0.09344]
[1768141911482,0.09430486,91052.0,91042.0,0.10463092]
[1768141913098,0.09430486,91052.0,91042.0,0.01119092]
[1768141913300,0.09430486,91052.0,91038.0,0.00241659]
[1768141914499,0.09430486,91052.0,91038.0,0.01351568]
[1768141914996,0.09430486,91052.0,91038.0,0.02451368]
[1768141917603,0.09430486,91052.0,91040.0,0.010998]
[1768141918406,0.09430486,91052.0,91042.0,0.010998]
[1768141918994,0.09430486,91079.0,91063.0,0.010995]
[1768141919302,0.09430486,91079.0,91064.0,0.09344]
[1768141919908,0.09430486,91079.0,91064.0,0.104435]
[1768141921100,0.09430486,91079.0,91066.0,0.010995]
[1768141921312,0.09430486,91084.0,91066.0,0.01323516]
[1768141921505,0.09430486,91084.0,91069.0,0.010994]
[1768141923214,0.10529786,91083.0,91066.0,0.02423016]
[1768141923712,0.09820505,91076.0,91063.0,0.010995]
[1768141923911,0.09820505,91076.0,91048.0,0.010997]
[1768141923912,0.09820505,91075.0,91064.0,0.09344]
[1768141924717,0.09344,91092.0,91061.0,0.09344]
[1768141924718,0.09820505,91068.0,91061.0,0.09344]
[1768141924901,0.09820505,91067.0,91058.0,0.09344]
[1768141925901,0.09820505,91067.0,91057.0,0.09344]
[1768141926504,0.19563841,91065.0,91043.0,0.08294953]
[1768141926705,0.09820505,91064.0,91054.0,0.010996]
[1768141927011,0.09820505,91064.0,91055.0,0.09344]
[1768141930019,0.09820505,91064.0,91054.0,0.010996]
[1768141932411,0.09820505,91064.0,91051.0,0.09344]
[1768141932620,0.09830029,91057.0,91032.0,0.085723]
[1768141932809,0.09830029,91053.0,91041.0,0.09344]
[1768141934409,0.09830029,91053.0,91044.0,0.010997]
[1768141937514,0.09830029,91053.0,91041.0,0.010998]
[1768141937820,0.09830029,91053.0,91043.0,0.010998]
[1768141938817,0.09830029,91051.0,91040.0,0.09344]
[1768141939018,0.010995,91065.0,91037.0,0.09344]
[1768141939019,0.09347414,91049.0,91037.0,0.09344]
[1768141939322,0.09830029,91046.0,91037.0,0.09344]
[1768141939521,0.09830029,91046.0,91037.0,0.104438]
[1768141939719,0.09830029,91046.0,91039.0,0.010998]
[1768141940421,0.09830029,91046.0,91040.0,0.010998]
[1768141946228,0.09830029,91046.0,91037.0,0.010998]
[1768141946417,0.09830029,91042.0,91035.0,0.09344]
[1768141946618,0.01095555,91042.0,91035.0,0.09344]
[1768141947329,0.01095555,91042.0,91038.0,0.010998]
[1768141947930,0.00011543,91041.0,91033.0,0.09344]
[1768141948234,0.00011543,91041.0,91037.0,0.010998]
[1768141949331,0.09830029,91040.0,91037.0,0.010998]
[1768141949638,0.00011543,91041.0,91037.0,0.010998]
[1768141952229,0.00011543,91041.0,91035.0,0.01137834]
[1768141952435,0.00011543,91041.0,91033.0,0.09344]
[1768141953133,0.00011543,91041.0,91025.0,0.10352909]
[1768141953134,0.09347414,91036.0,91026.0,0.109775]
[1768141953325,0.19177443,91036.0,91026.0,0.011]
[1768141953523,0.19177443,91036.0,91026.0,0.02235011]
[1768141956138,0.19177443,91036.0,91026.0,0.01135011]
[1768141956341,0.010999,91035.0,91025.0,0.00549303]
[1768141956635,0.09934921,91034.0,91024.0,0.09344]
[1768141956827,0.09934921,91034.0,91021.0,0.011]
[1768141956828,0.19641109,91033.0,91021.0,0.011]
[1768141957028,0.19641109,91031.0,91021.0,0.011]
[1768141957227,0.19641109,91031.0,91021.0,0.02223236]
[1768141957441,0.19641109,91031.0,91024.0,0.011]
[1768141960042,0.19641109,91030.0,91021.0,0.01123236]
[1768141960339,0.19641109,91030.0,91020.0,0.09344]
[1768141961244,0.010998,91039.0,91020.0,0.09344]
[1768141961245,0.19641109,91027.0,91020.0,0.01151466]
[1768141961446,0.19641109,91026.0,91014.0,0.09344]
[1768141961739,0.19641109,91024.0,91014.0,0.09344]
[1768141961942,0.19641109,91022.0,91014.0,0.10488512]
[1768141962336,0.09706188,91021.0,91017.0,0.011001]
[1768141962846,0.09934921,91025.0,91017.0,0.011001]
[1768141963034,0.09706188,91028.0,91017.0,0.011001]
[1768141963441,0.09706188,91028.0,91014.0,0.10488512]
[1768141964446,0.09706188,91028.0,91017.0,0.011001]
[1768141965036,0.09706188,91024.0,91008.0,0.00241738]
[1768141965344,0.09934921,91021.0,91008.0,0.01341938]
[1768141965545,0.09706188,91020.0,91008.0,0.01341938]
[1768141965733,0.09706188,91019.0,91008.0,0.01341938]
[1768141965932,0.19641109,91019.0,91008.0,0.01341938]
[1768141966145,0.19641109,91019.0,91008.0,0.02467054]
[1768141966444,0.09706188,91018.0,91008.0,0.02467054]
[1768141966643,0.19641109,91018.0,91008.0,0.02467054]
[1768141966945,0.19641109,91014.0,91006.0,0.02872674]
[1768141967645,0.19641109,91014.0,91009.0,0.011002]
[1768141967845,0.09934921,91018.0,91009.0,0.011002]
[1768141968157,0.09934921,91018.0,91011.0,0.011001]
[1768141968644,0.09934921,91018.0,91006.0,0.04169289]
[1768141968645,0.09934921,91018.0,91007.0,0.011002]
[1768141968847,0.09934921,91018.0,91006.0,0.04169289]
[1768141970441,0.09706188,91017.0,91006.0,0.01296615]
[1768141970641,0.09934921,91016.0,91005.0,0.00549423]
[1768141970842,0.09943798,91015.0,91005.0,0.00549423]
[1768141971049,0.09943798,91015.0,91000.0,0.09348]
[1768141971050,0.09934921,91010.0,91000.0,0.09348]
[1768141972039,0.09934921,91010.0,91000.0,0.10635074]
[1768141972943,0.09934921,91010.0,91000.0,0.01287074]
[1768141973133,0.09934921,91010.0,90999.0,0.011003]
[1768141973947,0.09934921,91010.0,90997.0,0.011003]
[1768141974148,0.09934921,91010.0,90999.0,0.011003]
[1768141974650,0.19641109,91009.0,90999.0,0.011003]
[1768141974954,0.09934921,91008.0,90997.0,0.01315818]
[1768141975141,0.09934921,91008.0,90993.0,0.09348]
[1768141975542,0.09934921,91007.0,90993.0,0.09348]
[1768141975943,0.09934921,91007.0,90993.0,0.1065824]
[1768141976447,0.09934921,91007.0,90995.0,0.011003]
[1768141979255,0.09934921,91005.0,90995.0,0.011003]
[1768141980244,0.19641109,91005.0,90993.0,0.1065824]
[1768141980444,0.09934921,91002.0,90991.0,0.011004]
[1768141980747,0.09934921,90999.0,90985.0,0.97031869]
[1768141980951,0.09934921,90999.0,90991.0,0.011004]
[1768141981345,0.09934921,90997.0,90985.0,0.01867869]
[1768141981546,0.09706188,90994.0,90975.0,0.09348]
[1768141981756,0.09706188,90990.0,90980.0,0.011005]
[1768141981959,0.09934921,90989.0,90977.0,0.011005]
[1768141982149,0.09934921,90989.0,90977.0,0.02416722]
[1768141982361,8.354e-05,90988.0,90979.0,0.011005]
[1768141982543,8.354e-05,90988.0,90977.0,0.01316222]
[1768141982750,0.09934921,90985.0,90968.0,0.00014195]
[1768141982960,8.354e-05,90988.0,90977.0,0.011005]
[1768141983161,8.354e-05,90988.0,90977.0,0.011006]
[1768141983353,8.354e-05,90988.0,90979.0,0.011005]
[1768141983554,8.354e-05,90988.0,90981.0,0.011005]
[1768141985655,8.354e-05,90988.0,90978.0,0.011005]
[1768141986046,8.354e-05,90988.0,90980.0,0.011005]
[1768141986658,8.354e-05,90988.0,90982.0,0.011005]
[1768141986956,8.354e-05,90988.0,90980.0,0.011005]
[1768141988657,8.354e-05,90988.0,90977.0,0.02382253]
[1768141989959,8.354e-05,90988.0,90982.0,0.011005]
[1768141990160,8.354e-05,90988.0,90979.0,0.011005]
[1768141991160,8.354e-05,90988.0,90977.0,0.01281753]
[1768141991361,8.354e-05,90988.0,90974.0,0.18741154]
[1768141992161,8.354e-05,90988.0,90974.0,0.20033744]
[1768141992461,8.354e-05,90988.0,90980.0,0.011005]
[1768141993166,8.354e-05,90988.0,90982.0,0.011005]
[1768141994464,8.354e-05,90988.0,90979.0,0.011005]
[1768141995660,8.354e-05,90988.0,90980.0,0.011005]
[1768141995868,8.354e-05,90988.0,90975.0,0.18741154]
[1768141995869,8.354e-05,90988.0,90982.0,0.011005]
[1768141996057,8.354e-05,90988.0,90979.0,0.011005]
[1768141996660,8.354e-05,90988.0,90980.0,0.09119639]
[1768141996864,0.09348,90994.0,90981.0,0.18741154]
[1768141997060,0.09348,90994.0,90985.0,0.011005]
[1768141997661,0.09751709,91000.0,90981.0,0.18741154]
[1768141997862,0.09361021,90999.0,90984.0,0.011005]
[1768141998659,0.09361021,90999.0,90985.0,0.011005]
[1768141999470,0.1911273,90999.0,90985.0,0.011005]
[1768141999667,0.1911273,90999.0,90981.0,0.18741154]
[1768141999668,0.09361021,90999.0,90982.0,0.18741154]
[1768142000169,0.09361021,90999.0,90986.0,0.011004]
[1768142000571,0.09348,91000.0,90993.0,0.011004]
[1768142000772,0.09348,91000.0,90988.0,0.18741154]
[1768142001073,0.09348,91000.0,90991.0,0.011004]
[1768142001569,7.583e-05,90999.0,90988.0,0.18741154]
[1768142001770,7.583e-05,90999.0,90991.0,0.011004]
[1768142001965,7.583e-05,90999.0,90988.0,0.18741154]
[1768142002171,0.09348,91000.0,90988.0,0.18741154]
[1768142002668,0.00549423,91005.0,90988.0,0.18741154]
[1768142002855,0.09901423,91005.0,90988.0,0.18741154]
[1768142003055,0.09901423,91005.0,90991.0,0.09119639]
[1768142003975,0.09901423,91005.0,90994.0,0.011003]
[1768142004170,0.00549423,91005.0,90994.0,0.011003]
[1768142004372,0.00549423,91005.0,90996.0,0.011003]
[1768142005475,0.09352,91017.0,91004.0,0.011002]
[1768142005675,0.09352,91017.0,91004.0,0.18741154]
[1768142005969,0.09352,91017.0,91009.0,0.011002]
[1768142006365,0.09352,91017.0,91011.0,0.011001]
[1768142007261,0.00549303,91025.0,91011.0,0.011001]
[1768142007262,0.09901303,91025.0,91011.0,0.011001]
[1768142010775,0.19653012,91025.0,91011.0,0.011001]
[1768142011173,0.09751709,91024.0,91011.0,0.011001]
[1768142012275,0.09751709,91024.0,91008.0,0.011002]
[1768142014981,0.09751709,91024.0,91010.0,0.011002]
[1768142015982,0.09751709,91024.0,91012.0,0.011001]
[1768142019892,0.09751709,91024.0,91013.0,0.011001]
[1768142021982,0.18782263,91024.0,91013.0,0.011001]
[1768142022182,0.09430718,91023.0,91013.0,0.011001]
[1768142023383,0.09430718,91023.0,91010.0,0.011001]
[1768142023884,0.09430718,91021.0,91001.0,0.09352]
[1768142024677,0.09430718,91021.0,91001.0,0.27764506]
[1768142024983,0.09430718,91021.0,91005.0,0.011002]
[1768142025482,0.09430718,91021.0,91015.0,0.011001]
[1768142026288,0.09430718,91021.0,91006.0,0.011002]
[1768142026987,0.09430718,91021.0,91012.0,0.011001]
[1768142027285,0.09430718,91021.0,91013.0,0.011001]
[1768142030486,0.09430718,91021.0,91008.0,0.011002]
[1768142032090,0.09430718,91021.0,91009.0,0.011002]
[1768142033187,0.09430718,91019.0,91005.0,0.011002]
[1768142033888,0.09430718,91018.0,91005.0,0.011002]
[1768142035187,0.09430718,91018.0,91006.0,0.011002]
[1768142035489,0.09430718,91018.0,91007.0,0.011002]
[1768142035689,0.09430718,91018.0,91011.0,0.011001]
[1768142036080,0.09030554,91019.0,91013.0,0.011001]
[1768142036276,0.09030554,91019.0,91010.0,0.011001]
[1768142036590,0.09030554,91019.0,91011.0,0.011001]
[1768142037193,0.09030554,91019.0,91003.0,0.011002]
[1768142037391,0.09430718,91022.0,91003.0,0.011002]
[1768142039092,0.09430718,91021.0,91003.0,0.011002]
[1768142039277,0.09430718,91020.0,91003.0,0.011002]
[1768142039792,0.09430718,91020.0,91013.0,0.011001]
[1768142040788,0.09030554,91021.0,91013.0,0.011001]
[1768142040994,0.09430718,91024.0,91014.0,0.011001]
[1768142041583,0.09430718,91024.0,91015.0,0.011001]
[1768142041988,0.09430718,91024.0,91005.0,0.011002]
[1768142042193,0.09430718,91023.0,91013.0,0.011001]
[1768142042693,0.09430718,91022.0,91013.0,0.011001]
[1768142042993,0.00549303,91025.0,91021.0,0.011]
[1768142043493,0.00549303,91025.0,91023.0,0.011]
[1768142043494,3e-08,91025.0,91023.0,0.011]
[1768142043691,0.09430718,91032.0,91026.0,0.011]
[1768142044392,0.00249241,91045.0,91037.0,0.010998]
[1768142044585,0.00249241,91045.0,91039.0,0.010998]
[1768142044787,0.09760249,91048.0,91039.0,0.010998]
[1768142045087,0.09760249,91052.0,91043.0,0.010998]
[1768142045295,0.09760249,91052.0,91036.0,0.010998]
[1768142045693,0.19085932,91052.0,91036.0,0.010998]
[1768142045888,0.09760249,91051.0,91036.0,0.010998]
[1768142046593,0.09760249,91051.0,91031.0,0.09952739]
[1768142046594,0.09760249,91051.0,91038.0,0.010998]
[1768142049687,0.19263316,91051.0,91040.0,0.010998]
[1768142049899,0.09161306,91050.0,91040.0,0.010998]
[1768142051790,0.09161306,91050.0,91037.0,0.010998]
[1768142051991,0.18664373,91043.0,91029.0,0.010999]
[1768142052201,0.09161306,91042.0,91029.0,0.010999]
[1768142052591,0.09161306,91041.0,91029.0,0.010999]
[1768142055599,0.09161306,91041.0,91031.0,0.010999]
[1768142057903,0.09161306,91041.0,91033.0,0.010999]
[1768142061202,0.09161306,91041.0,91034.0,0.010999]
[1768142065107,0.09161306,91041.0,91035.0,0.010998]